{"text_format":"1","workbook":"xlsx","n_sheets":2,"sheets":["Hoja1","Hoja2"],"not_rendered":{"charts":0,"images":0,"macros":0,"external_links":0,"defined_names":8,"comments":0,"pivot_tables":0},"unopened":[],"bounds":{"document_bytes":16777216,"sheet_cells":100000,"rows_first":2000,"rows_last":500,"rows_between":2000,"halvings":0,"cell_chars":16384,"cell_head_chars":4096},"cells_cut":0,"cells_raw":0,"read":"whole","date_system":"1900"}

{"sheet":"Hoja1","index":0,"n_rows":5,"n_cols":6,"rows_kept":5,"cut":false,"hidden":false,"merged":[]}
["Producto","Referencia","Calidad 3ª","Calidad 2ª","Calidad 1ª","Calidad SUPER"]
[{"$f":"INDIRECT(\"Hoja2!F1C\"&(ROW()-1)*4,0)","v":"Producto 1"},{"$f":"INDIRECT(\"Hoja2!F2C\"&(ROW()-1)*4,0)","v":"X35212RR1"},{"$f":"INDIRECT(\"Hoja2!F3C\"&(ROW()-1)*4,0)","v":21.55},{"$f":"INDIRECT(\"Hoja2!F\"&3+(COLUMN()-3)*5&\"C\"&(ROW()-1)*4,0)","v":25.75},{"$f":"INDIRECT(\"Hoja2!F\"&3+(COLUMN()-3)*5&\"C\"&(ROW()-1)*4,0)","v":31.2},{"$f":"INDIRECT(\"Hoja2!F\"&3+(COLUMN()-3)*5&\"C\"&(ROW()-1)*4,0)","v":38.65}]
[{"$f":"INDIRECT(\"Hoja2!F1C\"&(ROW()-1)*4,0)","v":"Producto 2"},{"$f":"INDIRECT(\"Hoja2!F2C\"&(ROW()-1)*4,0)","v":"FY443587"},{"$f":"INDIRECT(\"Hoja2!F3C\"&(ROW()-1)*4,0)","v":12.33},{"$f":"INDIRECT(\"Hoja2!F\"&3+(COLUMN()-3)*5&\"C\"&(ROW()-1)*4,0)","v":17.55},{"$f":"INDIRECT(\"Hoja2!F\"&3+(COLUMN()-3)*5&\"C\"&(ROW()-1)*4,0)","v":23.45},{"$f":"INDIRECT(\"Hoja2!F\"&3+(COLUMN()-3)*5&\"C\"&(ROW()-1)*4,0)","v":28.65}]
[{"$f":"INDIRECT(\"Hoja2!F1C\"&(ROW()-1)*4,0)","v":"Producto 3"},{"$f":"INDIRECT(\"Hoja2!F2C\"&(ROW()-1)*4,0)","v":"GI425611"},{"$f":"INDIRECT(\"Hoja2!F3C\"&(ROW()-1)*4,0)","v":15.65},{"$f":"INDIRECT(\"Hoja2!F\"&3+(COLUMN()-3)*5&\"C\"&(ROW()-1)*4,0)","v":18.75},{"$f":"INDIRECT(\"Hoja2!F\"&3+(COLUMN()-3)*5&\"C\"&(ROW()-1)*4,0)","v":25.36},{"$f":"INDIRECT(\"Hoja2!F\"&3+(COLUMN()-3)*5&\"C\"&(ROW()-1)*4,0)","v":29.65}]
[{"$f":"INDIRECT(\"Hoja2!F1C\"&(ROW()-1)*4,0)","v":"Producto 4"},{"$f":"INDIRECT(\"Hoja2!F2C\"&(ROW()-1)*4,0)","v":"…"},{"$f":"INDIRECT(\"Hoja2!F3C\"&(ROW()-1)*4,0)","v":0},{"$f":"INDIRECT(\"Hoja2!F\"&3+(COLUMN()-3)*5&\"C\"&(ROW()-1)*4,0)","v":0},{"$f":"INDIRECT(\"Hoja2!F\"&3+(COLUMN()-3)*5&\"C\"&(ROW()-1)*4,0)","v":0},{"$f":"INDIRECT(\"Hoja2!F\"&3+(COLUMN()-3)*5&\"C\"&(ROW()-1)*4,0)","v":0}]

{"sheet":"Hoja2","index":1,"n_rows":22,"n_cols":16,"rows_kept":22,"cut":false,"hidden":false,"merged":[]}
[null,null,"NombreProducto:","Producto 1",null,null,"NombreProducto:","Producto 2",null,null,"NombreProducto:","Producto 3",null,null,"NombreProducto:","Producto 4"]
[null,null,"Referencia:","X35212RR1",null,null,"Referencia:","FY443587",null,null,"Referencia:","GI425611",null,null,"Referencia:","…"]
["Calidad 3ª:",null,"Mejor precio:",{"$f":"MIN(D4:D7)","v":21.55},"Calidad 3ª:",null,"Mejor precio:",{"$f":"MIN(H4:H7)","v":12.33},"Calidad 3ª:",null,"Mejor precio:",{"$f":"MIN(L4:L7)","v":15.65},"Calidad 3ª:",null,"Mejor precio:",{"$f":"MIN(P4:P7)","v":0}]
["provedor 1","(otros datos)","(otros datos)",21.55,"provedor 1","(otros datos)","(otros datos)",13,"provedor 1","(otros datos)","(otros datos)",18.66,"provedor …","(otros datos)","(otros datos)","…"]
["provedor 2","(otros datos)","(otros datos)",22.33,"provedor 4","(otros datos)","(otros datos)",12.33,"provedor 4","(otros datos)","(otros datos)",17.329999999999998,"provedor …","(otros datos)","(otros datos)","…"]
["provedor 3","(otros datos)","(otros datos)",23.33,"provedor 8","(otros datos)","(otros datos)",13.33,"provedor 8","(otros datos)","(otros datos)",15.65,"provedor …","(otros datos)","(otros datos)","…"]
["provedor 4","(otros datos)","(otros datos)",24.55,"provedor 9","(otros datos)","(otros datos)",14.55,"provedor 9","(otros datos)","(otros datos)",19.55,"provedor …","(otros datos)","(otros datos)","…"]
["Calidad 2ª:",null,null,{"$f":"MIN(D9:D12)","v":25.75},"Calidad 2ª:",null,null,{"$f":"MIN(H9:H12)","v":17.55},"Calidad 2ª:",null,null,{"$f":"MIN(L9:L12)","v":18.75},"Calidad 2ª:",null,null,{"$f":"MIN(P9:P12)","v":0}]
["provedor 2","(otros datos)","(otros datos)",27.35,"provedor 3","(otros datos)","(otros datos)",19.350000000000001,"provedor 3","(otros datos)","(otros datos)",19.350000000000001,"provedor …","(otros datos)","(otros datos)","…"]
["provedor 3","(otros datos)","(otros datos)",28.21,"provedor 4","(otros datos)","(otros datos)",17.55,"provedor 4","(otros datos)","(otros datos)",19.55,"provedor …","(otros datos)","(otros datos)","…"]
["provedor 5","(otros datos)","(otros datos)",25.75,"provedor 6","(otros datos)","(otros datos)",18.75,"provedor 6","(otros datos)","(otros datos)",18.75,"provedor 6","(otros datos)","(otros datos)","…"]
["provedor 6","(otros datos)","(otros datos)",29.64,"provedor 9","(otros datos)","(otros datos)",21.64,"provedor 9","(otros datos)","(otros datos)",20.64,"provedor 9","(otros datos)","(otros datos)","…"]
["Calidad 1ª:",null,null,{"$f":"MIN(D14:D61)","v":31.2},"Calidad 1ª:",null,null,{"$f":"MIN(H14:H61)","v":23.45},"Calidad 1ª:",null,null,{"$f":"MIN(L14:L61)","v":25.36},"Calidad 1ª:",null,null,{"$f":"MIN(P14:P61)","v":0}]
["provedor 1","(otros datos)","(otros datos)",31.2,"provedor 1","(otros datos)","(otros datos)",24.22,"provedor 1","(otros datos)","(otros datos)",26.22,"provedor 1","(otros datos)","(otros datos)","…"]
["provedor 2","(otros datos)","(otros datos)",35.36,"provedor 4","(otros datos)","(otros datos)",25.36,"provedor 4","(otros datos)","(otros datos)",25.36,"provedor 4","(otros datos)","(otros datos)","…"]
["provedor 3","(otros datos)","(otros datos)",38.65,"provedor 5","(otros datos)","(otros datos)",28.65,"provedor 5","(otros datos)","(otros datos)",28.65,"provedor 5","(otros datos)","(otros datos)","…"]
["provedor 4","(otros datos)","(otros datos)",39.450000000000003,"provedor 7","(otros datos)","(otros datos)",23.45,"provedor 7","(otros datos)","(otros datos)",25.45,"provedor 7","(otros datos)","(otros datos)","…"]
["Cal. SUPER:",null,null,{"$f":"MIN(D19:D66)","v":38.65},"Cal. SUPER:",null,null,{"$f":"MIN(H19:H66)","v":28.65},"Cal. SUPER:",null,null,{"$f":"MIN(L19:L66)","v":29.65},"Cal. SUPER:",null,null,{"$f":"MIN(P19:P66)","v":0}]
["provedor 1","(otros datos)","(otros datos)",39.22,"provedor 3","(otros datos)","(otros datos)",31.22,"provedor 3","(otros datos)","(otros datos)",31.22,"provedor 3","(otros datos)","(otros datos)","…"]
["provedor 3","(otros datos)","(otros datos)",41.36,"provedor 4","(otros datos)","(otros datos)",30.36,"provedor 4","(otros datos)","(otros datos)",30.36,"provedor 4","(otros datos)","(otros datos)","…"]
["provedor 9","(otros datos)","(otros datos)",38.65,"provedor 5","(otros datos)","(otros datos)",29.65,"provedor 5","(otros datos)","(otros datos)",30.36,"provedor 5","(otros datos)","(otros datos)","…"]
["provedor 10","(otros datos)","(otros datos)",39.450000000000003,"provedor 10","(otros datos)","(otros datos)",28.65,"provedor 10","(otros datos)","(otros datos)",29.65,"provedor 10","(otros datos)","(otros datos)","…"]